bitfinex/quotes_BTCUSD_20241202
["timestamp","ask_amount","ask_price","bid_price","bid_amount"]
[1733153204870,0.0008668,97011.0,97010.0,0.2353]
[1733153205088,0.0008668,97011.0,97010.0,0.4273]
[1733153205351,0.0008668,97011.0,97010.0,0.2353]
[1733153206103,0.0008668,97011.0,97010.0,0.2383]
[1733153206356,0.0008668,97011.0,97010.0,0.2373]
[1733153206602,0.0018668,97011.0,97010.0,0.2383]
[1733153207539,0.0018668,97011.0,97010.0,0.53314521]
[1733153207780,0.0018668,97011.0,97010.0,0.54534164]
[1733153208256,0.0018668,97011.0,97010.0,0.25049643]
[1733153208463,0.0018668,97011.0,97010.0,0.2383]
[1733153208953,0.0248668,97011.0,97010.0,0.003]
[1733153209199,0.27771201,97011.0,97010.0,0.003]
[1733153209661,0.28733291,97011.0,97010.0,0.003]
[1733153210343,0.29433291,97011.0,97010.0,0.002]
[1733153210594,0.29433291,97011.0,97010.0,0.003]
[1733153210826,0.3856129,97011.0,97010.0,0.002]
[1733153211033,0.356183,97001.0,97000.0,0.001734]
[1733153211262,0.49002821,97001.0,97000.0,0.001734]
[1733153211478,1.00071921,97001.0,97000.0,0.001734]
[1733153211747,0.99293656,97001.0,97000.0,0.001734]
[1733153211997,1.07150302,97001.0,97000.0,0.001734]
[1733153212202,0.91039602,97001.0,97000.0,0.001734]
[1733153212410,0.86522602,97001.0,97000.0,0.001734]
[1733153212873,0.87422602,97001.0,97000.0,0.001734]
[1733153213127,0.86522602,97001.0,97000.0,0.001734]
[1733153213616,0.85730502,97001.0,97000.0,0.001734]
[1733153213877,0.86230502,97001.0,97000.0,0.001734]
[1733153214129,0.50564956,97001.0,97000.0,0.001734]
[1733153214337,0.50064956,97001.0,97000.0,0.001734]
[1733153214557,0.50664956,97001.0,97000.0,0.001734]
[1733153215027,0.64767656,97001.0,97000.0,0.001734]
[1733153215288,0.206208,96989.0,96979.0,0.0167328]
[1733153215517,0.49167456,96989.0,96979.0,0.0167328]
[1733153215970,0.49967456,96989.0,96979.0,0.0167328]
[1733153216196,0.008,96983.0,96979.0,0.0167328]
[1733153216454,0.014,96984.0,96979.0,0.0167328]
[1733153216455,0.364228,96980.0,96979.0,0.0167328]
[1733153216656,0.92755956,96980.0,96979.0,0.01683553]
[1733153216867,0.47669456,96980.0,96979.0,0.01683553]
[1733153217300,2.84041156,96980.0,96979.0,5.3e-07]
[1733153217521,0.49069456,96980.0,96979.0,5.3e-07]
[1733153217758,0.58600812,96980.0,96979.0,5.3e-07]
[1733153218274,0.56700812,96980.0,96979.0,5.3e-07]
[1733153218491,0.60800812,96980.0,96979.0,5.3e-07]
[1733153218737,0.61700812,96980.0,96979.0,5.3e-07]
[1733153218975,0.206259,96965.0,96964.0,0.0008662]
[1733153219223,0.91438396,96965.0,96964.0,0.0008662]
[1733153219462,0.92238396,96965.0,96964.0,0.0008662]
[1733153220560,0.92238396,96965.0,96964.0,2e-07]
[1733153220802,0.33314296,96965.0,96964.0,2e-07]
[1733153221012,0.023,96954.0,96952.0,0.0007328]
[1733153221291,0.023,96954.0,96940.0,0.0017332]
[1733153221292,0.10284521,96953.0,96940.0,0.0017332]
[1733153221526,0.173,96921.0,96912.0,0.0848314]
[1733153222239,0.173,96921.0,96912.0,0.2768314]
[1733153222496,0.173,96921.0,96920.0,0.192]
[1733153222705,0.173,96921.0,96919.0,0.186]
[1733153222925,0.178,96921.0,96919.0,0.00017588]
[1733153223195,0.20920005,96921.0,96919.0,0.00017588]
[1733153223397,0.023,96927.0,96919.0,0.00017588]
[1733153223609,0.173,96925.0,96919.0,0.00017588]
[1733153223829,0.173,96923.0,96919.0,0.00017588]
[1733153224041,0.173,96921.0,96919.0,0.00017588]
[1733153224299,0.30342973,96920.0,96919.0,0.00017588]
[1733153225227,0.173,96920.0,96919.0,0.00017588]
[1733153225450,0.023,96928.0,96919.0,0.04927588]
[1733153225669,0.025,96920.0,96919.0,0.31307588]
[1733153225889,0.002,96920.0,96919.0,0.31307588]
[1733153226115,0.002,96920.0,96919.0,0.12707588]
[1733153226586,0.10284521,96920.0,96919.0,0.00017588]
[1733153227013,0.023,96927.0,96919.0,0.00017588]
[1733153227234,0.173,96925.0,96919.0,0.00017588]
[1733153227461,0.173,96923.0,96919.0,0.00017588]
[1733153227690,0.14784521,96920.0,96919.0,0.00017588]
[1733153227925,0.14784521,96920.0,96912.0,0.0017314]
[1733153227926,0.022,96913.0,96912.0,0.0017314]
[1733153228166,0.52316417,96913.0,96912.0,0.0017314]
[1733153228375,0.52316417,96913.0,96912.0,0.00190725]
[1733153228635,0.008,96904.0,96903.0,0.0017314]
[1733153228843,0.78297121,96904.0,96903.0,0.00190736]
[1733153229060,0.52084621,96904.0,96903.0,0.00190736]
[1733153229319,0.25284521,96904.0,96903.0,0.00190736]
[1733153230017,0.27584521,96904.0,96903.0,0.00190736]
[1733153231469,0.2415,96906.0,96905.0,0.177]
[1733153231694,0.2415,96906.0,96905.0,0.176]
[1733153232120,0.2415,96906.0,96905.0,0.173]
[1733153232590,0.18400049,96940.0,96918.0,0.192]
[1733153232840,0.18400049,96930.0,96909.0,0.173]
[1733153233064,0.14684526,96939.0,96911.0,0.173]
[1733153233065,0.18400049,96913.0,96911.0,0.173]
[1733153233321,0.18400049,96913.0,96912.0,0.172]
[1733153233555,0.18400049,96913.0,96911.0,0.172]
[1733153233816,0.15,96921.0,96911.0,0.172]
[1733153234025,0.023,96920.0,96912.0,0.172]
[1733153235400,0.023,96920.0,96918.0,0.001]
[1733153235618,0.023,96920.0,96905.0,0.172]
[1733153235619,0.023,96918.0,96905.0,0.172]
[1733153235833,0.20700049,96915.0,96903.0,0.12250736]
[1733153236095,0.023,96913.0,96912.0,0.0017318]
[1733153236315,0.12584521,96913.0,96912.0,0.0017318]
[1733153236562,0.27584521,96913.0,96912.0,0.0017318]
[1733153236770,0.173,96913.0,96912.0,0.0017318]
[1733153237744,0.27584521,96913.0,96912.0,0.0017318]
[1733153238900,0.27584521,96913.0,96912.0,0.0027318]
[1733153240061,0.18400049,96922.0,96912.0,0.0027318]
[1733153240062,0.18400049,96922.0,96913.0,0.0481]
[1733153240267,0.18400049,96922.0,96918.0,0.172]
[1733153240751,0.10284521,96921.0,96914.0,0.0823]
[1733153240960,0.05433457,96920.0,96913.0,0.0481]
[1733153241179,0.25799921,96919.0,96912.0,0.0017318]
[1733153241429,0.149192,96918.0,96912.0,0.0017318]
[1733153241633,0.023,96916.0,96912.0,0.0017318]
[1733153241879,0.173,96914.0,96912.0,0.0017318]
[1733153242089,0.28586319,96913.0,96912.0,0.0017318]
[1733153242350,0.27584521,96913.0,96912.0,0.0017318]
[1733153243443,0.4110034,96913.0,96912.0,0.0017318]
[1733153243864,0.3861704,96913.0,96912.0,0.0017318]
[1733153245061,0.31201075,96913.0,96912.0,0.0027318]
[1733153245271,0.40059245,96913.0,96912.0,0.0027318]
[1733153245458,0.55982443,96913.0,96912.0,0.0027318]
[1733153245705,0.46132443,96913.0,96912.0,0.0027318]
[1733153246351,0.46632443,96913.0,96912.0,0.0027318]
[1733153246811,0.46132443,96913.0,96912.0,0.0027318]
[1733153247034,0.56915589,96913.0,96912.0,0.0027318]
[1733153247726,0.31701943,96913.0,96912.0,0.0027318]
[1733153247947,0.46328243,96913.0,96912.0,0.0027318]
[1733153248166,0.31701943,96913.0,96912.0,0.0027318]
[1733153248608,0.56472453,96913.0,96912.0,0.0027318]
[1733153248827,0.31788553,96913.0,96912.0,0.0027318]
[1733153249045,0.50964103,96913.0,96912.0,0.0027318]
[1733153249519,0.30031918,96913.0,96912.0,0.0027318]
[1733153249756,0.12731918,96913.0,96912.0,0.0027318]
[1733153250000,0.63720918,96913.0,96912.0,0.0027318]
[1733153250213,0.29298574,96913.0,96912.0,0.0027318]
[1733153250462,0.13774774,96913.0,96912.0,0.0027318]
[1733153250713,0.13774774,96913.0,96903.0,0.00190736]
[1733153250714,0.32674823,96913.0,96903.0,0.00190736]
[1733153250915,0.15,96907.0,96903.0,0.00190736]
[1733153251129,0.173,96905.0,96904.0,0.1266]
[1733153251594,0.18260787,96905.0,96904.0,0.1266]
[1733153252037,0.15960787,96905.0,96904.0,0.2986]
[1733153252264,0.00960787,96905.0,96904.0,0.2986]
[1733153252486,0.006,96905.0,96904.0,0.4906]
[1733153252733,0.2415,96908.0,96904.0,0.4906]
[1733153252957,0.2415,96908.0,96907.0,0.172]
[1733153253613,0.4145,96908.0,96907.0,0.172]
[1733153253825,0.4145,96908.0,96907.0,0.168]
[1733153254041,0.2645,96908.0,96907.0,0.36]
[1733153254263,0.2645,96908.0,96907.0,0.355]
[1733153254504,0.2645,96908.0,96907.0,0.354]
[1733153254757,0.3925,96908.0,96907.0,0.354]
[1733153254973,0.4155,96908.0,96907.0,0.354]
[1733153255193,0.3915,96908.0,96907.0,0.354]
[1733153255413,0.15,96908.0,96907.0,0.354]
[1733153255620,0.16758052,96911.0,96907.0,0.354]
[1733153255832,0.16758052,96911.0,96910.0,0.354]
[1733153256057,0.15,96911.0,96910.0,0.352]
[1733153256288,0.173,96911.0,96910.0,0.352]
[1733153256496,0.18977054,96911.0,96910.0,0.352]
[1733153256970,0.173,96911.0,96910.0,0.352]
[1733153257179,0.023,96911.0,96910.0,0.4819]
[1733153257410,0.0008661,96913.0,96910.0,0.4839]
[1733153257660,0.0008661,96913.0,96912.0,0.16]
[1733153257905,0.0008661,96913.0,96912.0,0.352]
[1733153259218,0.0008661,96913.0,96912.0,0.354]
[1733153259671,0.0008661,96913.0,96912.0,0.58414521]
[1733153260552,0.0008661,96913.0,96912.0,0.58514521]
[1733153260776,0.0008661,96913.0,96912.0,0.58314521]
[1733153261506,0.0018661,96913.0,96912.0,0.58314521]
[1733153261949,0.0028661,96913.0,96912.0,0.59014521]
[1733153262383,0.016,96967.0,96912.0,0.59014521]
[1733153262384,0.18400049,96970.0,96931.0,0.352]
[1733153262615,0.0096353,96969.0,96931.0,0.58304521]
[1733153262839,0.18400049,96950.0,96931.0,0.58304521]
[1733153263281,0.18400049,96960.0,96931.0,0.58304521]
[1733153263508,0.18400049,96950.0,96931.0,0.58304521]
[1733153263727,0.0018659,96932.0,96931.0,0.58704521]
[1733153263946,0.0018659,96932.0,96931.0,0.4842]
[1733153264186,0.0248659,96932.0,96931.0,0.3242]
[1733153264397,0.0248659,96932.0,96931.0,0.4842]
[1733153264624,0.0248659,96932.0,96931.0,0.3242]
[1733153264906,0.0258659,96932.0,96931.0,0.4912]
[1733153265373,0.04325584,96932.0,96931.0,0.4912]
[1733153265554,0.0258659,96932.0,96931.0,0.4912]
[1733153266961,0.18400049,96980.0,96963.0,0.352]
[1733153267203,0.754,96982.0,96975.0,0.352]
[1733153267437,0.498,96982.0,96980.0,0.192]
[1733153268363,0.498,96982.0,96981.0,0.192]
[1733153268565,0.653,96982.0,96981.0,0.192]
[1733153268790,0.648,96982.0,96981.0,0.192]
[1733153269009,0.653,96982.0,96981.0,0.192]
[1733153269239,0.67027595,96982.0,96981.0,0.192]
[1733153269476,0.15,96981.0,96979.0,0.16]
[1733153269680,0.007,96977.0,96976.0,0.16]
[1733153269893,0.03,96977.0,96976.0,0.16]
[1733153270106,0.007,96977.0,96976.0,0.16]
[1733153270370,0.173,96976.0,96961.0,0.0499]
[1733153270622,0.15,96970.0,96961.0,0.0499]
[1733153270859,0.15,96968.0,96961.0,0.0499]
[1733153271091,0.023,96967.0,96961.0,0.0499]
[1733153271990,0.173,96965.0,96956.0,0.2697]
[1733153272216,0.173,96965.0,96956.0,0.26987596]
[1733153272217,0.27584521,96965.0,96956.0,0.26987596]
[1733153272707,0.27584521,96965.0,96961.0,0.001]
[1733153272936,0.27584521,96965.0,96961.0,0.002]
[1733153273169,0.29263909,96965.0,96961.0,0.002]
[1733153273421,0.29263909,96965.0,96961.0,0.001]
[1733153273861,0.29263909,96965.0,96958.0,0.16]
[1733153274545,0.27584521,96965.0,96958.0,0.16]
[1733153274762,0.27305919,96965.0,96958.0,0.16]
[1733153276115,0.27305919,96965.0,96956.0,0.19217596]
[1733153278138,0.15,96979.0,96967.0,0.192]
[1733153278348,0.15,96969.0,96967.0,0.192]
[1733153278795,0.15,96969.0,96959.0,0.352]
[1733153279043,0.15,96969.0,96959.0,0.192]
[1733153279044,0.15,96967.0,96959.0,0.192]
[1733153279254,0.25284521,96967.0,96959.0,0.192]
[1733153279472,0.023,96966.0,96959.0,0.192]
[1733153280598,0.023,96968.0,96964.0,0.192]
[1733153280809,0.023,96968.0,96967.0,0.192]
[1733153281030,0.023,96968.0,96967.0,0.19]
[1733153281287,0.023,96966.0,96956.0,0.00017596]
[1733153281497,0.173,96964.0,96956.0,0.00017596]
[1733153281740,0.173,96962.0,96956.0,0.00017596]
[1733153281959,0.173,96960.0,96956.0,0.00017596]
[1733153282217,0.173,96958.0,96956.0,0.00017596]
[1733153282427,0.10284521,96957.0,96956.0,0.00017596]
[1733153282643,0.4857531,96957.0,96956.0,0.00017596]
[1733153283286,0.2854541,96957.0,96956.0,0.00017596]
[1733153283541,0.4314341,96957.0,96956.0,0.00017596]
[1733153283744,0.4314341,96957.0,96956.0,0.00117596]
[1733153283986,0.4334341,96957.0,96956.0,0.00017596]
[1733153284469,0.4354341,96957.0,96956.0,0.00017596]
[1733153284913,0.47897751,96957.0,96956.0,0.00017596]
[1733153285443,0.4354341,96957.0,96956.0,0.00017596]
[1733153286780,0.4354341,96957.0,96890.0,0.2]
[1733153286781,0.15,96941.0,96910.0,0.0507322]
[1733153287015,0.15,96919.0,96910.0,0.0017322]
[1733153287220,0.15,96919.0,96897.0,0.19]
[1733153287221,0.0004678,96906.0,96897.0,0.19]
[1733153287461,0.15,96904.0,96897.0,0.19]
[1733153287683,0.25284521,96904.0,96897.0,0.19]
[1733153287899,0.26247412,96904.0,96897.0,0.19]
[1733153288616,0.28547412,96904.0,96903.0,0.00190782]
[1733153288860,0.3044394,96904.0,96903.0,0.00190782]
[1733153289100,0.31406131,96904.0,96903.0,0.00190782]
[1733153289511,0.28546712,96904.0,96903.0,0.00190782]
[1733153289732,0.382389,96904.0,96903.0,0.00190782]
[1733153289954,0.384389,96904.0,96903.0,0.19190782]
[1733153290424,0.382389,96904.0,96903.0,0.19190782]
[1733153290638,0.379389,96904.0,96903.0,0.35190782]
[1733153290871,0.380389,96904.0,96903.0,0.39820782]
[1733153291084,0.39882035,96904.0,96903.0,0.39820782]
[1733153291529,0.39982035,96904.0,96903.0,0.39820782]
[1733153291821,0.003,96904.0,96903.0,0.48140782]
[1733153292049,0.0004678,96906.0,96903.0,0.48140782]
[1733153292050,0.0004678,96906.0,96905.0,0.4795]
[1733153292321,0.18400049,96940.0,96905.0,0.4795]
[1733153292322,0.206325,96935.0,96932.0,0.4795]
[1733153292530,0.206292,96950.0,96949.0,0.35]
[1733153292741,0.4975,96961.0,96957.0,0.16]
[1733153292961,0.20627,96960.0,96959.0,0.16]
[1733153293210,0.20627,96960.0,96958.0,0.19]
[1733153293415,0.22324042,96960.0,96959.0,0.35]
[1733153293869,0.22341641,96960.0,96959.0,0.349]
[1733153294112,0.22441641,96960.0,96959.0,0.349]
[1733153294380,0.22541641,96960.0,96959.0,0.349]
[1733153294614,0.22441641,96960.0,96959.0,0.349]
[1733153294846,0.39741641,96960.0,96959.0,0.349]
[1733153295585,0.00117599,96960.0,96959.0,0.4777]
[1733153296043,0.00217599,96960.0,96959.0,0.4777]
[1733153299903,0.00217599,96960.0,96933.0,0.10284521]
[1733153299904,0.08173265,96960.0,96951.0,0.189]
[1733153300155,0.08173265,96960.0,96949.0,0.349]
[1733153300156,0.023,96950.0,96949.0,0.349]
[1733153300383,0.15,96942.0,96933.0,0.189]
[1733153300589,0.356325,96934.0,96933.0,0.189]
[1733153300863,0.379325,96934.0,96933.0,0.189]
[1733153301110,0.379336,96929.0,96928.0,0.0808]
[1733153301310,0.379336,96929.0,96928.0,0.4298]
[1733153302428,0.206317,96939.0,96933.0,0.349]
[1733153302645,0.379317,96939.0,96938.0,0.349]
[1733153303124,0.15,96938.0,96930.0,0.189]
[1733153303325,0.206308,96943.0,96929.0,0.189]
[1733153303326,0.173,96930.0,96929.0,0.189]
[1733153305092,0.173,96930.0,96929.0,0.349]
[1733153305334,0.206355,96920.0,96914.0,0.0826]
[1733153305564,0.206355,96920.0,96914.0,0.2716]
[1733153305565,0.173,96918.0,96914.0,0.2716]
[1733153305779,0.173,96918.0,96917.0,0.16]
[1733153306482,0.023,96918.0,96917.0,0.16]
[1733153306928,0.023,96918.0,96917.0,0.349]
[1733153306929,0.22358826,96918.0,96917.0,0.349]
[1733153307212,0.20636,96918.0,96917.0,0.349]
[1733153307853,0.206355,96920.0,96919.0,0.16]
[1733153308084,0.206355,96920.0,96919.0,0.349]
[1733153308569,0.412711,96920.0,96917.0,0.003]
[1733153308791,0.20636,96918.0,96917.0,0.003]
[1733153309007,1.32169,96918.0,96917.0,0.001]
[1733153309232,1.32169,96918.0,96915.0,0.16]
[1733153309233,0.379364,96916.0,96915.0,0.16]
[1733153310349,0.412736,96914.0,96911.0,0.189]
[1733153310555,0.356368,96914.0,96913.0,0.16]
[1733153310777,0.356368,96914.0,96913.0,0.349]
[1733153311289,0.001,96916.0,96915.0,0.349]
[1733153311492,0.206344,96926.0,96921.0,0.16]
[1733153311493,0.206351,96922.0,96921.0,0.16]
[1733153311946,0.206351,96922.0,96921.0,0.349]
[1733153312178,0.206362,96917.0,96916.0,0.269]
[1733153312393,0.206362,96917.0,96915.0,0.189]
[1733153312583,0.206362,96917.0,96916.0,0.348]
[1733153313739,0.001,96917.0,96916.0,0.348]
[1733153313949,0.001,96917.0,96916.0,0.45084521]
[1733153314188,0.18400049,96950.0,96934.0,0.189]
[1733153314189,0.206324,96935.0,96934.0,0.189]
[1733153314385,0.206324,96935.0,96934.0,0.348]
[1733153315611,0.206324,96935.0,96934.0,0.35]
[1733153315845,0.20632,96937.0,96936.0,0.348]
[1733153316038,0.206312,96941.0,96940.0,0.348]
[1733153316272,0.206323,96935.0,96934.0,0.003]
[1733153316494,0.30916821,96935.0,96934.0,0.003]
[1733153316699,0.31878201,96935.0,96934.0,0.002]
[1733153316971,0.20636,96918.0,96917.0,0.159]
[1733153317163,0.20636,96918.0,96917.0,0.34817642]
[1733153317164,0.35636,96918.0,96917.0,0.34817642]
[1733153317410,0.35636,96918.0,96917.0,0.18917642]
[1733153317626,0.35636,96918.0,96917.0,0.15917642]
[1733153318793,0.37390618,96918.0,96917.0,0.16090782]
[1733153319436,0.37390618,96918.0,96917.0,0.00190782]
[1733153319588,0.35636,96918.0,96917.0,0.00190782]
[1733153319818,0.35636,96918.0,96917.0,0.00490782]
[1733153320003,0.35636,96918.0,96917.0,0.16390782]
[1733153320973,0.54916398,96918.0,96917.0,0.00490782]
[1733153321209,0.89286639,96918.0,96917.0,0.00490782]
[1733153321433,0.82590762,96918.0,96917.0,0.00490782]
[1733153322272,0.82590762,96918.0,96917.0,0.00190782]
[1733153322522,0.75926762,96918.0,96917.0,0.00190782]
[1733153322732,1.01826762,96918.0,96917.0,0.00190782]
[1733153322973,1.02226762,96918.0,96917.0,0.00190782]
[1733153323605,1.02226762,96918.0,96917.0,8.2e-07]
[1733153323863,0.75483462,96918.0,96917.0,8.2e-07]
[1733153324493,0.82616573,96918.0,96917.0,8.2e-07]
[1733153325380,0.77229343,96918.0,96917.0,8.2e-07]
[1733153325584,0.74929343,96918.0,96917.0,8.2e-07]
[1733153326499,0.74928605,96918.0,96917.0,8.2e-07]
[1733153326714,0.76828605,96918.0,96917.0,8.2e-07]
[1733153327580,0.76528605,96918.0,96917.0,8.2e-07]
[1733153327805,0.86811751,96918.0,96917.0,8.2e-07]
[1733153328028,0.87011751,96918.0,96917.0,8.2e-07]
[1733153328500,0.86811751,96918.0,96917.0,8.2e-07]
[1733153328715,0.87011751,96918.0,96917.0,8.2e-07]
[1733153328926,0.88111751,96918.0,96917.0,8.2e-07]
[1733153329181,0.88411751,96918.0,96917.0,8.2e-07]
[1733153329549,0.8616587,96918.0,96917.0,8.2e-07]
[1733153329761,0.8686587,96918.0,96917.0,8.2e-07]
[1733153330323,0.8726587,96918.0,96917.0,8.2e-07]
[1733153331218,0.8616587,96918.0,96917.0,8.2e-07]
[1733153331424,1.0680187,96918.0,96915.0,8.2e-07]
[1733153331619,0.48220921,96916.0,96915.0,8.2e-07]
[1733153331836,0.49183124,96916.0,96915.0,8.2e-07]
[1733153332262,0.48220921,96916.0,96915.0,8.2e-07]
[1733153332477,0.49184043,96916.0,96915.0,8.2e-07]
[1733153332953,0.49684043,96916.0,96915.0,8.2e-07]
[1733153333154,0.61067189,96916.0,96915.0,8.2e-07]
[1733153333363,0.61067189,96916.0,96903.0,0.0017314]
[1733153333364,0.229398,96900.0,96882.0,0.0017314]
[1733153333595,0.356434,96883.0,96882.0,0.0017314]
[1733153333824,0.46891043,96883.0,96882.0,0.0017314]
[1733153334052,0.46891043,96883.0,96870.0,0.08234]
[1733153334053,0.379438,96881.0,96880.0,5.2e-07]
[1733153334283,0.49191443,96881.0,96880.0,5.2e-07]
[1733153334904,0.49191443,96881.0,96880.0,0.00058882]
[1733153335612,0.49490589,96881.0,96880.0,0.00058882]
[1733153335857,0.47190589,96881.0,96880.0,0.00058882]
[1733153336070,0.21906068,96881.0,96880.0,0.43088882]
[1733153336315,0.21906068,96881.0,96880.0,0.08288882]
[1733153336316,0.210438,96881.0,96880.0,0.08288882]
[1733153337100,0.209438,96881.0,96880.0,0.27188882]
[1733153337529,0.359438,96881.0,96880.0,0.27188882]
[1733153337741,0.359438,96881.0,96880.0,0.08288882]
[1733153337953,0.56189396,96881.0,96880.0,0.00058882]
[1733153338173,0.74412496,96881.0,96880.0,0.00058882]
[1733153338392,0.77674393,96881.0,96880.0,8.2e-07]
[1733153338635,0.15,96870.0,96868.0,0.01027641]
[1733153338840,0.45930921,96869.0,96868.0,0.0086474]
[1733153339956,0.356464,96869.0,96868.0,0.0086474]
[1733153340203,0.15,96861.0,96860.0,0.06338899]
[1733153340417,0.25284521,96861.0,96860.0,0.06338899]
[1733153341310,0.25284521,96861.0,96860.0,0.23174239]
[1733153341311,0.15,96861.0,96860.0,0.23174239]
[1733153341547,0.15,96861.0,96860.0,0.39074239]
[1733153342231,0.153,96861.0,96860.0,0.47224239]
[1733153342452,0.4065,96861.0,96860.0,0.47224239]
[1733153342915,0.379483,96860.0,96859.0,0.38460426]
[1733153343134,2.18584021,96860.0,96859.0,0.38460426]
[1733153343354,0.74794031,96860.0,96859.0,0.38460426]
[1733153343569,2.33395331,96860.0,96859.0,0.38460426]
[1733153343786,2.33395331,96860.0,96859.0,0.34330626]
[1733153344030,1.85150331,96860.0,96859.0,0.28135926]
[1733153344242,1.88321006,96860.0,96859.0,0.28135926]
[1733153344457,1.83618006,96860.0,96859.0,0.28135926]
[1733153344677,1.83518006,96860.0,96859.0,0.28135926]
[1733153345143,1.82199983,96860.0,96859.0,0.28135926]
[1733153345395,1.83099983,96860.0,96859.0,0.28135926]
[1733153345604,1.56599983,96860.0,96859.0,0.17811426]
[1733153345861,1.57399983,96860.0,96859.0,0.17811426]
[1733153346071,1.58199983,96860.0,96859.0,0.17811426]
[1733153346542,1.67683129,96860.0,96859.0,0.07486926]
[1733153346760,1.68183129,96860.0,96859.0,2.6e-07]
[1733153346973,0.62529829,96860.0,96859.0,2.6e-07]
[1733153347214,0.65694489,96860.0,96859.0,2.6e-07]
[1733153347427,0.4521706,96841.0,96840.0,0.04473812]
[1733153347644,0.4521706,96841.0,96840.0,0.04491471]
[1733153347645,3.22710097,96841.0,96840.0,0.04491471]
[1733153347865,3.22710097,96841.0,96835.0,0.0017326]
[1733153347866,0.379534,96836.0,96835.0,3.1e-07]
[1733153348076,0.49199131,96836.0,96835.0,3.1e-07]
[1733153348767,0.31899131,96836.0,96835.0,0.15900031]
[1733153348978,0.30937921,96836.0,96835.0,0.28390031]
[1733153349189,0.32656574,96836.0,96835.0,0.28390031]
[1733153349438,0.33356574,96836.0,96835.0,0.28390031]
[1733153349671,0.213534,96836.0,96835.0,0.45225371]
[1733153350125,0.363534,96836.0,96835.0,0.45225371]
[1733153350847,0.356534,96836.0,96835.0,0.45225371]
[1733153351083,0.356534,96836.0,96835.0,0.45325371]
[1733153351558,0.356534,96836.0,96835.0,0.45225371]
[1733153351776,0.152,96836.0,96835.0,0.45225371]
[1733153352040,0.00017584,96841.0,96840.0,0.4106534]
[1733153352355,0.00017584,96841.0,96840.0,0.4594534]
[1733153352826,0.01077486,96887.0,96871.0,0.1683534]
[1733153352827,0.206453,96874.0,96871.0,0.1683534]
[1733153353064,0.206481,96861.0,96857.0,0.0818]
[1733153353298,0.206515,96845.0,96844.0,0.2078]
[1733153353536,0.30936021,96845.0,96844.0,0.2068]
[1733153354014,0.30936021,96845.0,96844.0,0.0478]
[1733153354245,0.45936021,96845.0,96844.0,0.2068]
[1733153354489,0.46136021,96845.0,96844.0,0.2068]
[1733153354721,0.45936021,96845.0,96844.0,0.2068]
[1733153354956,0.47697281,96845.0,96844.0,0.2068]
[1733153355194,0.47697281,96845.0,96844.0,0.3751534]
[1733153355195,0.356515,96845.0,96844.0,0.3751534]
[1733153355432,0.206515,96845.0,96844.0,0.3751534]
[1733153355682,0.206515,96845.0,96844.0,0.3781534]
[1733153356414,0.206515,96845.0,96844.0,0.3801534]
[1733153356881,0.206515,96845.0,96844.0,0.38102]
[1733153357118,0.206512,96847.0,96844.0,0.38102]
[1733153357119,0.0017332,96861.0,96860.0,0.1683534]
[1733153357356,0.0017332,96861.0,96860.0,0.4082534]
[1733153357819,0.0017332,96861.0,96860.0,0.4556534]
[1733153358279,0.0067332,96861.0,96860.0,0.4556534]
[1733153358521,0.0017332,96861.0,96860.0,0.4556534]
[1733153359013,0.0017332,96861.0,96860.0,0.4566534]
[1733153359226,0.0017332,96861.0,96860.0,0.4556534]
[1733153359475,0.0017332,96861.0,96844.0,0.2008666]
[1733153359476,0.15,96860.0,96851.0,0.1683534]
[1733153359716,0.206513,96846.0,96845.0,0.3273534]
[1733153361600,0.207513,96846.0,96845.0,0.3273534]
[1733153361810,0.356513,96846.0,96845.0,0.3273534]
[1733153362035,0.356513,96846.0,96845.0,0.3323534]
[1733153362286,0.45935821,96846.0,96845.0,0.164]
[1733153362514,0.45935821,96846.0,96845.0,0.159]
[1733153362978,0.45935821,96846.0,96845.0,0.162]
[1733153363465,0.45935821,96846.0,96845.0,0.159]
[1733153364420,0.15,96845.0,96844.0,0.0008666]
[1733153364651,0.207513,96846.0,96845.0,0.85]
[1733153364896,0.31035821,96846.0,96845.0,1.009]
[1733153365139,0.30935821,96846.0,96845.0,1.009]
[1733153365399,0.31135821,96846.0,96845.0,1.009]
[1733153365638,0.31135821,96846.0,96845.0,0.85]
[1733153365885,0.31135821,96846.0,96845.0,1.01]
[1733153366361,0.21814654,96846.0,96845.0,1.1783534]
[1733153366595,0.208513,96846.0,96845.0,1.1773534]
[1733153366835,0.209513,96846.0,96845.0,1.1773534]
[1733153367712,0.31235821,96846.0,96845.0,1.009]
[1733153367949,0.31235821,96846.0,96845.0,0.85]
[1733153367950,0.31899257,96846.0,96845.0,0.85]
[1733153368178,0.31899257,96846.0,96845.0,0.851]
[1733153368640,0.46899257,96846.0,96845.0,0.851]
[1733153368903,1.14143603,96846.0,96845.0,0.85]
[1733153369137,1.42503303,96846.0,96845.0,0.851]
[1733153369362,1.42603303,96846.0,96845.0,0.768392]
[1733153369604,1.42589973,96846.0,96845.0,0.74674]
[1733153369834,1.42589973,96846.0,96845.0,0.64348]
[1733153370067,1.42689973,96846.0,96845.0,0.64348]
[1733153370303,1.44989973,96846.0,96845.0,0.64348]
[1733153370531,1.34606827,96846.0,96845.0,0.64348]
[1733153370762,1.35006827,96846.0,96845.0,0.64348]
[1733153370995,1.35206827,96846.0,96845.0,0.64348]
[1733153371234,1.35206827,96846.0,96845.0,0.602176]
[1733153371481,1.35006827,96846.0,96845.0,0.54022]
[1733153371723,1.35706827,96846.0,96845.0,0.519568]
[1733153371949,1.35706827,96846.0,96845.0,0.43696]
[1733153372406,1.34743391,96846.0,96845.0,0.43696]
[1733153372632,0.5354996,96846.0,96845.0,0.416308]
[1733153372883,0.5354996,96846.0,96845.0,0.3337]
[1733153373367,1.89142086,96846.0,96845.0,0.3337]
[1733153373604,1.77353486,96846.0,96845.0,0.3337]
[1733153373832,1.28982986,96846.0,96845.0,0.3337]
[1733153374327,1.39266132,96846.0,96845.0,0.3337]
[1733153374556,1.28982986,96846.0,96845.0,0.3337]